fUSD/lending_fUSD_20260329
["ID","MTS","AMOUNT","RATE_DAILY","PERIOD"]
[419020580,1774763441136,-503.04,0.00013698,2]
[419020581,1774763441147,-503.04,0.00013698,2]
[419020582,1774763441159,-503.04,0.00013698,2]
[419020583,1774763441169,-503.04,0.00013698,2]
[419020584,1774763441181,-503.04,0.00013698,2]
[419020585,1774763441193,-500.0,0.00013698,2]
[419020586,1774763441203,-500.0,0.00013698,2]
[419020587,1774763441214,-500.0,0.00013698,2]
[419020588,1774763441225,-500.0,0.00013698,2]
[419020589,1774763441235,-500.0,0.00013698,2]
[419020590,1774763441246,-390.56107017,0.00013698,2]
[419020591,1774763441257,-500.0,0.00013698,2]
[419020592,1774763441267,-500.0,0.00013698,2]
[419020593,1774763441278,-500.0,0.00013698,2]
[419020594,1774763441288,-500.0,0.00013698,2]
[419020595,1774763441299,-500.0,0.00013698,2]
[419020596,1774763441309,-500.0,0.00013698,2]
[419020597,1774763441320,-500.0,0.00013698,2]
[419020598,1774763441331,-500.0,0.00013698,2]
[419020599,1774763441342,-500.0,0.00013698,2]
[419020600,1774763441354,-500.0,0.00013698,2]
[419020601,1774763441364,-500.0,0.00013698,2]
[419020602,1774763441374,-500.0,0.00013698,2]
[419020603,1774763441384,-500.0,0.00013698,2]
[419020604,1774763441395,-500.0,0.00013698,2]
[419020605,1774763441406,-500.0,0.00013698,2]
[419020606,1774763441417,-500.0,0.00013698,2]
[419020607,1774763441427,-500.0,0.00013698,2]
[419020608,1774763441438,-150.0,0.00013699,2]
[419020609,1774763441448,-150.0,0.00013699,2]
[419020610,1774763441460,-150.0,0.00013699,2]
[419020611,1774763441470,-150.0,0.00013699,2]
[419020612,1774763441481,-371.26,0.00013699,2]
[419020613,1774763441491,-500.0,0.00013699,2]
[419020614,1774763441502,-165.20736909,0.00013699,2]
[419020615,1774763441512,-500.0,0.00013699,2]
[419020616,1774763441522,-500.0,0.00013699,2]
[419020617,1774763441532,-500.0,0.00013699,2]
[419020618,1774763441542,-500.0,0.00013699,2]
[419020619,1774763441552,-500.61251814,0.00013699,2]
[419020620,1774763441562,-500.0,0.00013699,2]
[419020621,1774763441573,-500.0,0.00013699,2]
[419020622,1774763441583,-500.0,0.00013699,2]
[419020623,1774763441592,-500.0,0.00013699,2]
[419020624,1774763441602,-501.2412305,0.00013699,2]
[419020625,1774763441612,-500.0,0.00013699,2]
[419020626,1774763441622,-500.0,0.00013699,2]
[419020627,1774763441632,-501.46955268,0.00013699,2]
[419020628,1774763441642,-161.75757125,0.00013699,2]
[419020629,1774763441653,-303.4827321,0.00013699,2]
[419020630,1774763441664,-500.0,0.00013699,2]
[419020631,1774763441674,-500.0,0.00013699,2]
[419020632,1774763441684,-500.0,0.00013699,2]
[419020633,1774763441695,-500.79948541,0.00013699,2]
[419020634,1774763441705,-500.11753077,0.00013699,2]
[419020635,1774763441715,-500.0,0.00013699,2]
[419020636,1774763441725,-500.0,0.00013699,2]
[419020637,1774763441736,-500.0,0.00013699,2]
[419020638,1774763441748,-351.8619564,0.00013699,2]
[419020639,1774763441759,-164.20203145,0.00013699,2]
[419020640,1774763441768,-500.79800767,0.00013699,2]
[419020641,1774763441778,-559.93927335,0.00013699,2]
[419020642,1774763441788,-500.48512281,0.00013699,2]
[419020643,1774763441798,-162.92469163,0.00013699,2]
[419020644,1774763441808,-500.0,0.00013699,2]
[419020645,1774763441819,-500.0,0.00013699,2]
[419020646,1774763441828,-163.64213874,0.00013699,2]
[419020647,1774763441838,-500.0,0.00013699,2]
[419020648,1774763441848,-500.0,0.00013699,2]
[419020649,1774763441857,-166.38309596,0.00013699,2]
[419020650,1774763441867,-500.0,0.00013699,2]
[419020651,1774763441877,-500.0,0.00013699,2]
[419020652,1774763441887,-500.0,0.00013699,2]
[419020653,1774763441897,-500.0,0.00013699,2]
[419020654,1774763441907,-160.27279954,0.00013699,2]
[419020655,1774763441917,-337.48789903,0.00013699,2]
[419020656,1774763441927,-163.45026092,0.00013699,2]
[419020657,1774763441937,-518.51040499,0.00013699,2]
[419020658,1774763441948,-500.25743768,0.00013699,2]
[419020659,1774763441962,-500.0,0.00013699,2]
[419020660,1774763441972,-500.0,0.00013699,2]
[419020661,1774763441982,-166.65702548,0.00013699,2]
[419020662,1774763441992,-500.0,0.00013699,2]
[419020663,1774763442003,-500.0,0.00013699,2]
[419020664,1774763442013,-501.02351697,0.00013699,2]
[419020665,1774763442023,-192.3169817,0.00013699,2]
[419020666,1774763442034,-321.78262716,0.00013699,2]
[419020667,1774763442044,-215.52,0.000137,2]
[419020668,1774763442054,-220.69,0.000137,2]
[419020669,1774763442064,-1549.85,0.000137,2]
[419020670,1774763442074,-243.23,0.000137,2]
[419020671,1774763442084,-300.0,0.00013815,2]
[419020672,1774763442094,-300.0,0.00013815,2]
[419020673,1774763442105,-300.0,0.00013815,2]
[419020674,1774763442115,-300.0,0.00013815,2]
[419020675,1774763442124,-300.0,0.00013815,2]
[419020676,1774763442135,-600.0,0.00013815,2]
[419020677,1774763442145,-600.0,0.00013815,2]
[419020678,1774763442155,-600.0,0.00013815,2]
[419020679,1774763442165,-600.0,0.00013815,2]
[419020680,1774763442175,-600.0,0.00013815,2]
[419020681,1774763442184,-2500.0,0.00013815,2]
[419020682,1774763442195,-2500.0,0.00013815,2]
[419020683,1774763442204,-2500.0,0.00013815,2]
[419020684,1774763442214,-2500.0,0.00013815,2]
[419020685,1774763442224,-2500.0,0.00013815,2]
[419020686,1774763442234,-165.72350984,0.00013847,2]
[419020687,1774763442244,-162.81865556,0.00013847,2]
[419020688,1774763442254,-503.04,0.00013849,2]
[419020689,1774763442264,-500.0,0.00013849,2]
[419020690,1774763442275,-1680.0,0.0001387,2]
[419020691,1774763442284,-479.55486842,0.00013877,2]
[419020692,1774763442294,-8860.29866164,0.00013878,2]
[419020693,1774763442306,-32749.49095792,0.00013882,2]
[419020694,1774763442317,-361.86,0.00013895,2]
[419020695,1774763442329,-255.0,0.00013926,2]
[419020696,1774763442339,-150.0,0.00013973,2]
[419020697,1774763442349,-150.0,0.00013973,2]
[419020698,1774763442360,-150.0,0.00013973,2]
[419020699,1774763442369,-150.0,0.00014,2]
[419020700,1774763442379,-513.0,0.00014,2]
[419020701,1774763442389,-11733.4473581,0.00014006,2]
[419020702,1774763442399,-1500.0,0.00014068,2]
[419020703,1774763442410,-509.48219482,0.00014068,2]
[419020704,1774763442420,-1500.0,0.00014068,2]
[419020705,1774763442430,-200.0,0.00014113,2]
[419020706,1774763442441,-361.88338678,0.00014168,2]
[419020707,1774763442452,-8860.29866164,0.00014213,2]
[419020708,1774763442462,-32749.49095792,0.00014218,2]
[419020709,1774763442472,-150.0,0.00014247,2]
[419020710,1774763442483,-150.0,0.00014247,2]
[419020711,1774763442493,-150.0,0.00014247,2]
[419020712,1774763442502,-1000.0,0.00014247,2]
[419020713,1774763442512,-1000.0,0.00014247,2]
[419020714,1774763442523,-1000.0,0.00014247,2]
[419020715,1774763442533,-1000.0,0.00014247,2]
[419020716,1774763442543,-1000.0,0.00014247,2]
[419020717,1774763442552,-875.52475925,0.00014247,2]
[419020718,1774763442562,-1000.0,0.00014247,2]
[419020719,1774763442572,-1000.0,0.00014247,2]
[419020720,1774763442592,-1000.0,0.00014247,2]
[419020721,1774763442616,-501.26333658,0.00014247,2]
[419020722,1774763442626,-1000.0,0.00014247,2]
[419020723,1774763442637,-1001.92036949,0.00014247,2]
[419020724,1774763442647,-1000.0,0.00014247,2]
[419020725,1774763442659,-679.35577738,0.00014247,2]
[419020726,1774763442670,-502.54797101,0.00014247,2]
[419020727,1774763442682,-1000.0,0.00014247,2]
[419020728,1774763442693,-501.85734539,0.00014247,2]
[419020729,1774763442703,-1001.59458687,0.00014247,2]
[419020730,1774763442714,-1000.0,0.00014247,2]
[419020731,1774763442725,-1000.0,0.00014247,2]
[419020732,1774763442739,-1000.0,0.00014247,2]
[419020733,1774763442748,-502.07720266,0.00014247,2]
[419020734,1774763442759,-1000.0,0.00014247,2]
[419020735,1774763442768,-1000.0,0.00014247,2]
[419020736,1774763442779,-1000.0,0.00014247,2]
[419020737,1774763442789,-1000.0,0.00014247,2]
[419020738,1774763442800,-1000.0,0.00014247,2]
[419020739,1774763442810,-500.69436483,0.00014247,2]
[419020740,1774763442820,-502.75954762,0.00014247,2]
[419020741,1774763442830,-1751.82507383,0.00014249,2]
[419020742,1774763442840,-160.0,0.00014276,2]
[419020743,1774763442851,-959.8630956,0.00014276,2]
[419020744,1774763442861,-479.55486842,0.00014383,2]
[419020745,1774763442872,-501.07676314,0.00014477,2]
[419020746,1774763442882,-166.66,0.00014502,2]
[419020747,1774763442892,-8860.29866164,0.00014548,2]
[419020748,1774763442904,-32749.49095792,0.00014554,2]
[419020749,1774763442914,-1500.0,0.00014597,2]
[419020750,1774763442925,-2000.0,0.00014616,2]
[419020751,1774763442935,-2000.0,0.00014616,2]
[419020752,1774763443132,-284.20491109,0.00014661,2]
[419020753,1774763443144,-154.53434814,0.00014685,2]
[419020754,1774763443155,-1008.27174746,0.00014795,2]
[419020755,1774763443165,-1577.83433324,0.00014795,2]
[419020756,1774763443176,-501.43625985,0.00014795,2]
[419020757,1774763443186,-898.88065305,0.00014795,2]
[419020758,1774763443197,-1331.30897363,0.00014795,2]
[419020759,1774763443208,-1500.0,0.00014795,2]
[419020760,1774763443218,-1042.69333386,0.00014795,2]
[419020761,1774763443228,-1500.0,0.00014795,2]
[419020762,1774763443238,-1500.0,0.00014795,2]
[419020763,1774763443249,-910.63975449,0.00014795,2]
[419020764,1774763443260,-1500.0,0.00014795,2]
[419020765,1774763443270,-1503.74915214,0.00014795,2]
[419020766,1774763443279,-1080.42962611,0.00014795,2]
[419020767,1774763443289,-504.60365897,0.00014795,2]
[419020768,1774763443300,-1500.0,0.00014795,2]
[419020769,1774763443310,-1500.0,0.00014795,2]
[419020770,1774763443320,-684.37970889,0.00014795,2]
[419020771,1774763443330,-1500.0,0.00014795,2]
[419020772,1774763443340,-504.43813318,0.00014795,2]
[419020773,1774763443349,-8860.29866164,0.00014883,2]
[419020774,1774763443359,-479.55486842,0.00014889,2]
[419020775,1774763443368,-166.66,0.00014981,2]
[419020776,1774763443378,-288.143483,0.00015034,7]
[419020777,1774763443389,-433.0,0.00015118,2]
[419020778,1774763443398,-151.04919521,0.00015121,2]
[419020779,1774763443409,-174.61919141,0.00015121,2]
[419020780,1774763443419,-500.0,0.00015121,2]
[419020781,1774763443429,-500.0,0.00015121,2]
[419020782,1774763443438,-9552.16786547,0.00015121,2]
[419020783,1774763443448,-500.0,0.00015121,2]
[419020784,1774763443458,-500.0,0.00015121,2]
[419020785,1774763443469,-500.0,0.00015121,2]
[419020786,1774763443479,-500.0,0.00015121,2]
[419020787,1774763443490,-500.0,0.00015121,2]
[419020788,1774763443499,-500.0,0.00015121,2]
[419020789,1774763443509,-500.0,0.00015121,2]
[419020790,1774763443519,-500.0,0.00015121,2]
[419020791,1774763443528,-500.0,0.00015121,2]
[419020792,1774763443538,-250.0,0.00015121,2]
[419020793,1774763443547,-250.0,0.00015121,2]
[419020794,1774763443556,-500.0,0.00015121,2]
[419020796,1774763443567,-250.0,0.00015121,2]
[419020798,1774763443576,-250.0,0.00015121,2]
[419020799,1774763443585,-250.0,0.00015121,2]
[419020801,1774763443595,-151.0,0.00015121,2]
[419020802,1774763443604,-250.0,0.00015121,2]
[419020803,1774763443614,-250.0,0.00015121,2]
[419020804,1774763443624,-250.0,0.00015121,2]
[419020805,1774763443633,-250.0,0.00015121,2]
[419020806,1774763443643,-500.0,0.00015121,2]
[419020807,1774763443652,-250.0,0.00015121,2]
[419020808,1774763443662,-500.0,0.00015121,2]
[419020809,1774763443672,-250.0,0.00015121,2]
[419020810,1774763443682,-500.0,0.00015121,2]
[419020811,1774763443691,-500.0,0.00015121,2]
[419020812,1774763443701,-500.0,0.00015121,2]
[419020813,1774763443711,-500.0,0.00015121,2]
[419020814,1774763443721,-500.0,0.00015121,2]
[419020815,1774763443732,-500.0,0.00015121,2]
[419020816,1774763443742,-500.0,0.00015121,2]
[419020817,1774763443754,-500.0,0.00015121,2]
[419020818,1774763443765,-500.0,0.00015121,2]
[419020819,1774763443775,-262.90206542,0.00015121,2]
[419020820,1774763443787,-423.43045451,0.00015121,2]
[419020821,1774763443798,-751.86902123,0.00015121,2]
[419020822,1774763443810,-245.04491428,0.00015164,2]
[419020823,1774763443821,-1010.62550353,0.00015164,2]
[419020824,1774763443831,-631.42723728,0.00015175,2]
[419020825,1774763443842,-9905.5980765,0.00015176,2]
[419020826,1774763443852,-500.0,0.00015176,2]
[419020827,1774763443862,-151.0,0.00015176,2]
[419020828,1774763443873,-272.62944185,0.00015176,2]
[419020829,1774763443882,-10000.0,0.00015205,2]
[419020830,1774763443892,-8860.29866164,0.00015218,2]
[419020831,1774763443902,-10272.10520533,0.00015231,2]
[419020832,1774763443913,-500.0,0.00015231,2]
[419020833,1774763443923,-151.0,0.00015231,2]
[419020834,1774763443932,-282.71673119,0.00015231,2]
[419020835,1774763443942,-503.04,0.00015234,2]
[419020836,1774763443953,-343.118995,0.00015247,7]
[419020837,1774763443963,-271.776385,0.0001525,7]
[419020838,1774763443972,-373.649242,0.00015254,7]
[419020839,1774763443982,-2351.0,0.00015257,2]
[419020840,1774763443992,-10652.17309792,0.00015286,2]
[419020841,1774763444002,-500.0,0.00015286,2]
[419020842,1774763444013,-151.0,0.00015286,2]
[419020843,1774763444023,-293.17725025,0.00015286,2]
[419020844,1774763444033,-11046.30350255,0.00015341,2]
[419020845,1774763444043,-500.0,0.00015341,2]
[419020846,1774763444054,-151.0,0.00015341,2]
[419020847,1774763444064,-304.02480851,0.00015341,2]
[419020848,1774763444073,-1083.85118063,0.00015342,2]
[419020849,1774763444083,-2000.0,0.00015342,2]
[419020850,1774763444093,-1716.73514063,0.00015342,2]
[419020851,1774763444103,-507.9229115,0.00015342,2]
[419020852,1774763444113,-466.69355566,0.00015342,2]
[419020853,1774763444123,-1500.0,0.00015342,2]
[419020854,1774763444133,-2000.0,0.00015342,2]
[419020855,1774763444143,-479.55486842,0.00015394,2]
[419020856,1774763444154,-11455.01673214,0.00015396,2]
[419020857,1774763444166,-500.0,0.00015396,2]
[419020858,1774763444176,-151.0,0.00015396,2]
[419020859,1774763444185,-315.27372642,0.00015396,2]
[419020860,1774763444195,-1153.0,0.00015408,2]
[419020861,1774763444205,-1153.0,0.00015412,2]
[419020862,1774763444215,-1153.0,0.0001544,2]
[419020863,1774763444226,-11878.85235123,0.00015451,2]
[419020864,1774763444236,-500.0,0.00015451,2]
[419020865,1774763444246,-151.0,0.00015451,2]
[419020866,1774763444255,-326.9388543,0.00015451,2]
[419020867,1774763444265,-166.66,0.00015459,2]
[419020868,1774763444274,-1153.0,0.00015479,2]
[419020869,1774763444284,-12318.36988823,0.00015506,2]
[419020870,1774763444293,-500.0,0.00015506,2]
[419020871,1774763444304,-151.0,0.00015506,2]
[419020872,1774763444313,-339.03559191,0.00015506,2]
[419020873,1774763444323,-4000.0,0.00015507,2]
[419020874,1774763444333,-1153.0,0.00015534,2]
[419020875,1774763444342,-8860.29866164,0.00015553,2]
[419020876,1774763444352,-1153.0,0.00015554,2]
[419020877,1774763444362,-422.88395274,0.00015557,2]
[419020878,1774763444371,-12774.14957409,0.00015561,2]
[419020879,1774763444381,-500.0,0.00015561,2]
[419020880,1774763444390,-151.0,0.00015561,2]
[419020881,1774763444400,-2000.0,0.000156,2]
[419020882,1774763444412,-13246.79310833,0.00015616,2]
[419020883,1774763444422,-500.0,0.00015616,2]
[419020885,1774763444432,-151.0,0.00015616,2]
[419020887,1774763444443,-1153.0,0.00015624,2]
[419020889,1774763444453,-181.08010149,0.00015669,2]
[419020891,1774763444463,-13736.92445334,0.00015671,2]
[419020892,1774763444473,-500.0,0.00015671,2]
[419020893,1774763444483,-151.0,0.00015671,2]
[419020894,1774763444493,-2000.0,0.000157,2]
[419020895,1774763444503,-2025.0,0.000157,2]
[419020896,1774763444513,-2000.0,0.000157,2]
[419020897,1774763444523,-500.0,0.00015753,2]
[419020898,1774763444535,-15875.22869035,0.0001584,2]
[419020899,1774763444545,-178.676498,0.00015854,2]
[419020900,1774763444554,-217.8882415,0.00015855,2]
[419020901,1774763444563,-5122.0,0.00015867,5]
[419020902,1774763444574,-4097.0,0.00015867,5]
[419020903,1774763444584,-5550.05582141,0.00015888,2]
[419020904,1774763444683,-0.00732625,0.00013289,2]
[419020907,1774763446247,-486.75791101,0.00012854,2]
[419020908,1774763446257,-486.75058476,0.00013289,2]
[419020909,1774763446266,-8023.2433569,0.0001489,2]
[419020910,1774763446755,-1873.0,0.0001489,2]
[419020918,1774764457596,7378.63694018,8e-05,2]
[419020929,1774764631417,-287.0,0.0001165,2]
[419020930,1774764631427,-1268.05,0.0001165,2]
[419020931,1774764631436,-166.66,0.00011711,2]
[419020932,1774764631446,-862.4279276,0.00011895,2]
[419020933,1774764631494,-737.5720724,0.00011895,2]
[419020934,1774764631504,-500.0,0.00011932,2]
[419020935,1774764631513,-166.66,0.00011958,2]
[419020936,1774764631522,-200.0,0.00012042,2]
[419020937,1774764631531,-166.66,0.00012204,2]
[419020938,1774764631540,-166.66,0.00012451,2]
[419020939,1774764631550,-303.0,0.00012542,2]
[419020940,1774764631559,-434.0,0.00012567,2]
[419020941,1774764631568,-358.39107811,0.00012592,2]
[419020942,1774764631577,-1200.0,0.00012614,2]
[419020943,1774764631587,-300.0,0.00012614,2]
[419020944,1774764631596,-2206.81037981,0.00012615,2]
[419020945,1774764631607,-835.01545563,0.00012615,2]
[419020946,1774764631619,-1424.16570497,0.00012615,2]
[419020947,1774764631629,-555.92102686,0.00012615,2]
[419020948,1774764631640,-764.58943313,0.00012615,2]
[419020949,1774764631651,-300.77479621,0.00012615,2]
[419020950,1774764631662,-1600.0,0.00012615,2]
[419020951,1774764631685,-1526.40458596,0.00012615,2]
[419020952,1774764631703,-301.125,0.00012615,2]
[419020953,1774764631715,-672.09,0.00012615,2]
[419020954,1774764631727,-953.94191315,0.00012615,2]
[419020958,1774764637593,-647.16946692,0.00012614,2]
[419020959,1774764637603,-557.4523001,0.00012614,2]
[419020960,1774764637613,-500.0,0.00012614,2]
[419020961,1774764637622,-165.73543352,0.00012614,2]
[419020962,1774764637632,-39915.33774639,0.00012615,2]
[419020963,1774764637643,-13992.98583388,0.00012615,2]
[419020964,1774764637794,-2890.96426327,0.00012615,2]
[419020965,1774764637806,-2418.07525,0.00012615,2]
[419020966,1774764637865,-622.153193,0.00012615,2]
[419020967,1774764637931,-443.34450001,0.00012615,2]
[419020968,1774764637943,-2428576.30091773,0.00012615,2]
[419020969,1774764637952,-327.74411979,0.00012619,2]
[419020970,1774764637962,-300.0,0.00012671,2]
[419020971,1774764637971,-150.0,0.00012672,2]
[419020972,1774764637982,-460.76109075,0.00012673,2]
[419020973,1774764637991,-500.0,0.00012673,2]
[419020974,1774764638001,-500.0,0.00012673,2]
[419020975,1774764638010,-150.99,0.00012673,2]
[419020977,1774764638020,-7941.61,0.00012673,2]
[419020979,1774764638029,-2500.0,0.00012673,2]
[419020981,1774764638038,-166.66,0.00012697,2]
[419020982,1774764638048,-150.99,0.00012697,2]
[419020984,1774764638057,-150.0,0.00012714,2]
[419020986,1774764638066,-411.0470301,0.00012715,2]
[419020988,1774764638076,-9096.75684462,0.00012715,2]
[419020990,1774764638085,-28484.91752651,0.00012715,2]
[419020992,1774764638094,-304.22369439,0.00012715,2]
[419020994,1774764638104,-304.22369439,0.00012715,2]
[419020996,1774764638113,-2343.999,0.00012723,2]
[419020998,1774764638122,-222.916,0.00012723,2]
[419021000,1774764638132,-154.00708367,0.00012724,2]
[419021002,1774764638141,-150.0,0.00012724,2]
[419021004,1774764638151,-150.0,0.00012724,2]
[419021006,1774764638161,-501.07676314,0.00012724,2]
[419021008,1774764638170,-1619.26778298,0.00012724,2]
[419021010,1774764638180,-200.0,0.00012765,2]
[419021012,1774764638189,-164.18312656,0.00012765,2]
[419021014,1774764638198,-500.0,0.00012773,2]
[419021016,1774764638207,-500.0,0.00012773,2]
[419021018,1774764638217,-501.32363081,0.00012773,2]
[419021020,1774764638226,-500.0,0.00012773,2]
[419021022,1774764638235,-500.66997035,0.00012773,2]
[419021024,1774764638245,-325.38170273,0.00012815,2]
[419021026,1774764638254,-500.0,0.00012822,2]
[419021028,1774764638263,-500.0,0.00012822,2]
[419021030,1774764638274,-1000.0,0.00012824,2]
[419021032,1774764638283,-687783.3972015,0.00012824,2]
[419021034,1774764638295,-809.73291563,0.00012824,2]
[419021092,1774764639970,-234862.01769707,0.00012824,2]
[419021093,1774764641905,-322.00376557,0.00012824,2]
[419021094,1774764641970,-2129.56782122,0.00012824,2]
[419021099,1774764645496,-135310.13346148,0.00012824,2]
[419021100,1774764645508,-4445.91469702,0.00012824,2]
[419021101,1774764645680,-937.39489326,0.00012824,2]
[419021102,1774764645692,-1065.32192759,0.00012824,2]
[419021103,1774764646033,-2080.65751225,0.00012824,2]
[419021104,1774764646044,-4309.01217272,0.00012824,2]
[419021105,1774764646056,-1600.18703211,0.00012824,2]
[419021110,1774765338252,1751.82507383,0.0001051,2]
[419021111,1774765451149,4501.48,0.00017,60]
[419021114,1774765831682,-276.0,0.00011,2]
[419021115,1774765831691,-1434.5598001,0.00011799,2]
[419021116,1774765831862,-565.4401999,0.00011799,2]
[419021117,1774765831871,-1090.73,0.00011838,2]
[419021118,1774765831881,-1500.0,0.00011939,2]
[419021119,1774765831892,-166.67,0.00012081,2]
[419021120,1774765831902,-1200.0,0.00012098,2]
[419021121,1774765831911,-300.0,0.00012098,2]
[419021122,1774765831921,-300.0,0.00012098,2]
[419021123,1774765831930,-1200.0,0.00012098,2]
[419021124,1774765831940,-300.0,0.00012098,2]
[419021125,1774765831949,-325.38170273,0.000121,2]
[419021126,1774765831959,-250.0,0.000121,2]
[419021127,1774765831969,-176.23,0.00012363,2]
[419021128,1774765831979,-500.0,0.00012406,2]
[419021129,1774765831993,-500.0,0.00012406,2]
[419021130,1774765832003,-500.0,0.00012406,2]
[419021131,1774765832013,-500.0,0.00012406,2]
[419021132,1774765832023,-500.0,0.00012406,2]
[419021133,1774765832032,-500.0,0.00012406,2]
[419021134,1774765832041,-500.0,0.00012406,2]
[419021135,1774765832051,-548.89283393,0.00012406,2]
[419021136,1774765832060,-150.0,0.00012499,2]
[419021138,1774765832069,-220.60431289,0.000125,2]
[419021140,1774765832078,-375.92672113,0.000125,2]
[419021142,1774765832088,-359.68552176,0.000125,2]
[419021144,1774765832097,-334.78342541,0.000125,2]
[419021146,1774765832107,-218.09585107,0.000125,2]
[419021148,1774765832117,-367.90987263,0.000125,2]
[419021149,1774765832127,-328.25169729,0.000125,2]
[419021150,1774765832136,-151.98192158,0.000125,2]
[419021151,1774765832146,-192.7277889,0.00012505,2]
[419021152,1774765832156,-531.3115,0.00012515,2]
[419021153,1774765832165,-7183.6578,0.00012515,2]
[419021154,1774765832174,-2500.0,0.00012515,2]
[419021155,1774765832184,-93665.49594858,0.00012515,2]
[419021156,1774765832196,-1254.41808677,0.00012515,2]
[419021163,1774765837835,-150.0,0.00011836,2]
[419021164,1774765837844,-390.21661007,0.00012514,2]
[419021165,1774765837854,-453.01862684,0.00012514,2]
[419021166,1774765837864,-3503.96597597,0.00012515,2]
[419021167,1774765837876,-750016.14626229,0.00012515,2]
[419021168,1774765837904,-2102.01694542,0.00012515,2]
[419021169,1774765838034,-54409.39130715,0.00012515,2]
[419021170,1774765838103,-2936.5044634,0.00012515,2]
[419021185,1774765839914,-946.05260061,0.00012515,2]
[419021186,1774765839983,-537.11470325,0.00012515,2]
[419021187,1774765840114,-259.39905185,0.00012515,2]
[419021188,1774765840185,-787.67,0.00012515,2]
[419021189,1774765842877,-673.3310658,0.00012515,2]
[419021190,1774765842939,-562.39994,0.00012515,2]
[419021191,1774765842951,-345.0,0.00012515,2]
[419021200,1774765846016,-491.65400287,0.00012515,2]
[419021201,1774765846153,-22800.74922998,0.00012515,2]
[419021202,1774765846220,-20052.01638833,0.00012515,2]
[419021223,1774765885233,869.54798599,0.0001,3]
[419021224,1774765885387,814.3018622,0.0001,3]
[419021225,1774765990375,2233.8,0.0001,2]
[419021226,1774766404215,268.0,0.0001051,2]
[419021227,1774766405824,237.42,9.607e-05,2]
[419021228,1774766532918,200.0,0.0001051,2]
[419021229,1774766533593,500.0,0.0001051,2]
[419021230,1774766534256,500.0,0.0001051,2]
[419021231,1774766534894,500.0,0.0001051,2]
[419021232,1774766535508,500.0,0.0001051,2]
[419021233,1774766536150,500.0,0.0001051,2]
[419021234,1774766536737,500.0,0.0001051,2]
[419021235,1774766537345,500.0,0.0001051,2]
[419021236,1774766538370,500.0,0.0001051,2]
[419021237,1774766539233,500.0,0.0001051,2]
[419021238,1774766539850,500.0,0.0001051,2]
[419021239,1774766540324,152.03777968,0.0001051,2]
[419021240,1774766540482,500.0,0.0001051,2]
[419021241,1774766549859,151.0,0.0001051,2]
[419021242,1774766550510,151.0,0.0001051,2]
[419021243,1774766551312,151.0,0.0001051,2]
[419021244,1774766551962,141.45035812,0.0001051,2]
[419021245,1774766551987,9.54964188,0.0001051,2]
[419021246,1774766552565,151.0,0.0001051,2]
[419021247,1774766553172,151.0,0.0001051,2]
[419021248,1774766553327,500.0,0.0001051,2]
[419021249,1774766553793,151.0,0.0001051,2]
[419021250,1774766554561,500.0,0.0001051,2]
[419021251,1774766554595,151.0,0.0001051,2]
[419021252,1774766555063,500.0,0.0001051,2]
[419021253,1774766555095,151.0,0.0001051,2]
[419021254,1774766555684,500.0,0.0001051,2]
[419021255,1774766556122,151.0,0.0001051,2]
[419021256,1774766556604,500.0,0.0001051,2]
[419021257,1774766556768,151.0,0.0001051,2]
[419021258,1774766557251,584.87479624,0.0001051,2]